fUSD/lending_fUSD_20240814
["ID","MTS","AMOUNT","RATE_DAILY","PERIOD"]
[334916365,1723643760208,1009.79,0.00012,2]
[334916366,1723643760253,1009.79,0.00012,2]
[334916367,1723643760314,1009.79,0.00012,2]
[334916368,1723643760364,1009.79,0.00012,2]
[334916369,1723643760667,500.0,0.00013698,2]
[334916370,1723643760718,500.0,0.00013972,2]
[334916371,1723643760821,31398.3956,0.000109,2]
[334916372,1723643760895,512.0,0.00014,2]
[334916373,1723643760965,500.0,0.00013698,2]
[334916374,1723643761012,500.0,0.00013972,2]
[334916375,1723643761056,500.0,0.00013698,2]
[334916376,1723643761099,500.0,0.00013972,2]
[334916377,1723643761146,467.130734,0.00014,2]
[334916378,1723643761224,500.0,0.00013698,2]
[334916379,1723643761275,500.0,0.00013972,2]
[334916380,1723643761362,293.290218,0.00013698,2]
[334916382,1723643761426,500.0,0.00013698,2]
[334916383,1723643761477,500.0,0.00013972,2]
[334916384,1723643761541,500.0,0.00013698,2]
[334916385,1723643761598,500.0,0.00013972,2]
[334916386,1723643761690,467.130734,0.00014,2]
[334916387,1723643761772,500.0,0.00013698,2]
[334916388,1723643761820,500.0,0.00013698,2]
[334916389,1723643761872,500.0,0.00013972,2]
[334916390,1723643761919,500.0,0.00013972,2]
[334916391,1723643762016,500.0,0.00013698,2]
[334916392,1723643762094,500.0,0.00013972,2]
[334916394,1723643762176,500.0,0.00013698,2]
[334916395,1723643762229,500.0,0.00013698,2]
[334916396,1723643762296,500.0,0.00013698,2]
[334916397,1723643762363,155.574717,0.00013698,2]
[334916398,1723643762416,151.0,0.000139,2]
[334916399,1723643762458,500.0,0.00013698,2]
[334916400,1723643762628,500.0,0.00013698,2]
[334916401,1723643762677,500.0,0.00013972,2]
[334916402,1723643762725,500.0,0.00013698,2]
[334916403,1723643762777,500.0,0.00013972,2]
[334916404,1723643762845,1246.22651879,0.00013598,2]
[334916406,1723643762959,151.0,0.000139,2]
[334916407,1723643763004,151.0,0.00014,2]
[334916408,1723643763047,153.96,0.00013514,2]
[334916409,1723643763091,500.0,0.00013698,2]
[334916410,1723643763143,330.952738,0.00013698,2]
[334916411,1723643763185,500.0,0.00013972,2]
[334916412,1723643763266,330.952738,0.00013972,2]
[334916413,1723643763327,151.0,0.00014,2]
[334916414,1723643763385,309.22847159,0.00013872,2]
[334916418,1723643763676,500.0,0.00013698,2]
[334916419,1723643763719,500.0,0.00013972,2]
[334916420,1723643763781,155.0,0.00013899,2]
[334916421,1723643763831,151.0,0.00014,2]
[334916422,1723643763937,181.86810677,0.00012,2]
[334916423,1723643763981,880.359994,0.00013698,2]
[334916424,1723643764048,880.359994,0.00014,2]
[334916426,1723643764103,500.0,0.00013698,2]
[334916428,1723643764154,504.64,0.00013972,2]
[334916429,1723643764207,500.0,0.00013698,2]
[334916430,1723643764257,500.0,0.00013972,2]
[334916431,1723643764319,202.36,0.00011071,2]
[334916432,1723643764692,1000.0,0.000116,2]
[334916433,1723643765233,1364.12277784,0.00013693,2]
[334916434,1723643765324,880.359994,0.00013698,2]
[334916435,1723643765747,880.359994,0.00014,2]
[334916436,1723643767242,200.0,0.00010973,2]
[334916437,1723643767451,400.0,0.00012342,2]
[334916438,1723643768247,1324.892,0.000109,2]
[334916439,1723643768597,500.0,0.00013698,2]
[334916440,1723643768964,500.0,0.00013972,2]
[334916441,1723643769823,500.0,0.00013698,2]
[334916442,1723643770129,524.91456145,0.00013972,2]
[334916443,1723643771342,500.0,0.00013698,2]
[334916444,1723643771645,500.0,0.00013972,2]
[334916445,1723643772242,151.0,0.00013698,2]
[334916446,1723643772668,151.0,0.00014,2]
[334916447,1723643773374,277.372935,0.00013698,2]
[334916448,1723643773774,277.372935,0.00014,2]
[334916449,1723643773854,500.0,0.00013698,2]
[334916450,1723643774157,500.0,0.00013972,2]
[334916451,1723643775141,500.0,0.00013698,2]
[334916452,1723643775396,500.0,0.00013972,2]
[334916453,1723643776945,162.72933545,0.00012,2]
[334916454,1723643777375,277.372935,0.00013698,2]
[334916455,1723643777632,277.372935,0.00014,2]
[334916456,1723643777867,214.50362511,0.00012,2]
[334916457,1723643778814,500.0,0.00013698,2]
[334916458,1723643779078,500.0,0.00013972,2]
[334916459,1723643781232,-1000.0,0.00014,2]
[334916460,1723643781262,-912.9722422,0.0001415,2]
[334916461,1723643781293,-426.27,0.00014159,2]
[334916462,1723643781329,-150.0,0.00014159,2]
[334916463,1723643781361,-150.0,0.00014159,2]
[334916464,1723643781391,-150.0,0.00014159,2]
[334916465,1723643781429,-150.0,0.00014159,2]
[334916466,1723643781461,-150.0,0.00014159,2]
[334916467,1723643781492,-353.99,0.00014161,2]
[334916468,1723643781523,-227.227554,0.00014246,2]
[334916469,1723643781557,-227.227554,0.00014246,2]
[334916470,1723643781588,-235.892359,0.00014246,2]
[334916471,1723643781621,-235.892359,0.00014246,2]
[334916472,1723643781656,-177.463445,0.00014246,2]
[334916473,1723643781690,-177.463445,0.00014246,2]
[334916474,1723643781722,-209.116136,0.00014246,2]
[334916475,1723643781753,-209.116136,0.00014246,2]
[334916476,1723643781787,-151.0,0.00014246,2]
[334916477,1723643781831,-326.15283355,0.00014246,2]
[334916478,1723643781865,-500.0,0.00014246,2]
[334916479,1723643781898,-500.0,0.00014246,2]
[334916480,1723643781931,-500.0,0.00014246,2]
[334916481,1723643781962,-500.0,0.00014246,2]
[334916482,1723643781994,-500.0,0.00014246,2]
[334916483,1723643782028,-500.0,0.00014246,2]
[334916484,1723643782063,-500.0,0.00014246,2]
[334916485,1723643782099,-3951.0,0.00014246,2]
[334916486,1723643782133,-500.0,0.00014246,2]
[334916487,1723643782167,-500.0,0.00014246,2]
[334916488,1723643782199,-500.0,0.00014246,2]
[334916489,1723643782230,-405.51934158,0.00014246,2]
[334916490,1723643782261,-607.79189371,0.00014246,2]
[334916491,1723643782292,-500.0,0.00014246,2]
[334916492,1723643782327,-258.96242248,0.00014246,2]
[334916493,1723643782358,-500.0,0.00014246,2]
[334916494,1723643782392,-500.0,0.00014246,2]
[334916495,1723643782423,-500.0,0.00014246,2]
[334916496,1723643782455,-500.0,0.00014246,2]
[334916497,1723643782487,-16617.31,0.00014246,2]
[334916498,1723643782518,-305.76436451,0.00014246,2]
[334916499,1723643782550,-220.544659,0.00014246,2]
[334916500,1723643782588,-500.0,0.00014246,2]
[334916501,1723643782620,-220.544659,0.00014246,2]
[334916502,1723643782652,-611.09,0.00014246,2]
[334916503,1723643782683,-250.56187,0.00014246,2]
[334916504,1723643782715,-1482.368019,0.00014246,2]
[334916505,1723643782748,-250.56187,0.00014246,2]
[334916506,1723643782781,-500.0,0.00014246,2]
[334916507,1723643782815,-1482.368019,0.00014246,2]
[334916508,1723643782849,-461.10865813,0.00014246,2]
[334916509,1723643782880,-500.0,0.00014246,2]
[334916510,1723643782914,-500.0,0.00014246,2]
[334916511,1723643782947,-500.0,0.00014246,2]
[334916512,1723643782980,-500.0,0.00014246,2]
[334916513,1723643783012,-151.0,0.00014246,2]
[334916514,1723643783044,-151.0,0.00014246,2]
[334916515,1723643783084,-500.0,0.00014246,2]
[334916516,1723643783119,-500.0,0.00014246,2]
[334916517,1723643783154,-500.0,0.00014246,2]
[334916518,1723643783187,-500.0,0.00014246,2]
[334916519,1723643783220,-500.0,0.00014246,2]
[334916520,1723643783255,-500.0,0.00014246,2]
[334916521,1723643783288,-500.0,0.00014246,2]
[334916522,1723643783327,-159.43667335,0.00014246,2]
[334916523,1723643783360,-775.39,0.00014246,2]
[334916524,1723643783394,-500.0,0.00014246,2]
[334916525,1723643783434,-500.0,0.00014246,2]
[334916526,1723643783468,-500.0,0.00014246,2]
[334916527,1723643783503,-500.0,0.00014246,2]
[334916528,1723643783542,-531.92,0.00014246,2]
[334916529,1723643783575,-500.0,0.00014246,2]
[334916530,1723643783608,-500.0,0.00014246,2]
[334916531,1723643783641,-523.1,0.00014246,2]
[334916532,1723643783673,-500.0,0.00014246,2]
[334916533,1723643783705,-500.0,0.00014246,2]
[334916534,1723643783863,-500.0,0.00014246,2]
[334916535,1723643783896,-500.0,0.00014246,2]
[334916536,1723643783927,-500.0,0.00014246,2]
[334916537,1723643783960,-500.0,0.00014246,2]
[334916538,1723643783994,-500.0,0.00014246,2]
[334916539,1723643784027,-500.0,0.00014246,2]
[334916540,1723643784069,-500.0,0.00014246,2]
[334916541,1723643784104,-500.0,0.00014246,2]
[334916542,1723643784139,-332.8,0.00014279,2]
[334916543,1723643784174,-600.0,0.00014346,2]
[334916544,1723643784208,-6991.81,0.00014384,2]
[334916545,1723643784242,-1401.42823836,0.00014456,2]
[334916546,1723643784339,500.0,0.00013698,2]
[334916547,1723643784381,2063.13,0.00013698,2]
[334916548,1723643784428,500.0,0.00013972,2]
[334916549,1723643784470,2063.13,0.00013972,2]
[334916550,1723643784513,500.0,0.00014246,2]
[334916551,1723643784558,2063.13,0.00014246,2]
[334916552,1723643784662,500.0,0.00013698,2]
[334916553,1723643784713,500.0,0.00013972,2]
[334916554,1723643784933,500.0,0.00014246,2]
[334916555,1723643785016,500.0,0.00013698,2]
[334916556,1723643785287,500.0,0.00013972,2]
[334916557,1723643785564,500.0,0.00014246,2]
[334916558,1723643788053,500.0,0.00013698,2]
[334916559,1723643788343,500.0,0.00013972,2]
[334916560,1723643788608,500.0,0.00014246,2]
[334916561,1723643790899,1732.12740772,0.00012,2]
[334916562,1723643793441,22282.7327779,0.0001415,2]
[334916563,1723643794104,500.0,0.00013698,2]
[334916564,1723643794366,500.0,0.00013972,2]
[334916565,1723643794662,500.0,0.00014246,2]
[334916566,1723643795177,1313.6685989,0.00011,2]
[334916567,1723643797148,500.0,0.00013698,2]
[334916568,1723643797420,589.75053287,0.00013972,2]
[334916569,1723643798802,151.0,0.00013698,2]
[334916570,1723643799219,151.0,0.00014,2]
[334916571,1723643799806,499.44,0.00011,2]
[334916572,1723643800689,500.0,0.00013698,2]
[334916573,1723643801242,500.0,0.00013972,2]
[334916574,1723643801286,500.0,0.00014246,2]
[334916575,1723643801742,500.0,0.00013698,2]
[334916576,1723643803282,500.0,0.00013972,2]
[334916577,1723643803577,500.0,0.00014246,2]
[334916578,1723643806083,500.0,0.00013698,2]
[334916579,1723643806351,500.0,0.00013972,2]
[334916580,1723643806786,500.0,0.00014246,2]
[334916581,1723643808209,-500.0,0.0001452,2]
[334916582,1723643808242,-500.0,0.0001452,2]
[334916583,1723643808276,-500.0,0.0001452,2]
[334916584,1723643808309,-474.33801738,0.0001452,2]
[334916585,1723643808347,-500.0,0.0001452,2]
[334916586,1723643808382,-500.0,0.0001452,2]
[334916587,1723643808419,-500.0,0.0001452,2]
[334916588,1723643808457,-3951.0,0.0001452,2]
[334916589,1723643808495,-500.0,0.0001452,2]
[334916590,1723643808533,-500.0,0.0001452,2]
[334916591,1723643808573,-500.0,0.0001452,2]
[334916592,1723643808610,-500.0,0.0001452,2]
[334916593,1723643808643,-215.77411972,0.0001452,2]
[334916594,1723643808680,-500.0,0.0001452,2]
[334916595,1723643808717,-16617.31,0.0001452,2]
[334916596,1723643808753,-500.0,0.0001452,2]
[334916597,1723643808790,-611.09,0.0001452,2]
[334916598,1723643808825,-500.0,0.0001452,2]
[334916599,1723643808859,-500.0,0.0001452,2]
[334916600,1723643808892,-160.0,0.0001452,2]
[334916601,1723643808926,-500.0,0.0001452,2]
[334916602,1723643808961,-500.0,0.0001452,2]
[334916603,1723643808995,-537.79121632,0.0001452,2]
[334916604,1723643809028,-500.0,0.0001452,2]
[334916605,1723643809062,-623.32936155,0.0001452,2]
[334916606,1723643809100,-500.0,0.0001452,2]
[334916607,1723643809135,-500.0,0.0001452,2]
[334916608,1723643809169,-500.0,0.0001452,2]
[334916609,1723643809200,-775.39,0.0001452,2]
[334916610,1723643809233,-605.1,0.0001452,2]
[334916611,1723643809267,-500.0,0.0001452,2]
[334916612,1723643809302,-450.78,0.0001452,2]
[334916613,1723643809337,-500.0,0.0001452,2]
[334916614,1723643809371,-500.0,0.0001452,2]
[334916615,1723643809405,-408.51,0.0001452,2]
[334916616,1723643809441,-500.0,0.0001452,2]
[334916617,1723643809477,-182.97,0.0001452,2]
[334916618,1723643809511,-500.0,0.0001452,2]
[334916619,1723643809545,-500.0,0.0001452,2]
[334916620,1723643809579,-2063.13,0.0001452,2]
[334916621,1723643809613,-500.0,0.0001452,2]
[334916622,1723643809647,-500.0,0.0001452,2]
[334916623,1723643809679,-500.0,0.0001452,2]
[334916624,1723643809716,-500.0,0.0001452,2]
[334916625,1723643809752,-330.96,0.0001452,2]
[334916626,1723643809786,-560.01,0.0001452,2]
[334916627,1723643809818,-412.16930654,0.00014544,2]
[334916628,1723643809855,-155.0,0.00014545,2]
[334916629,1723643809889,-164.35042877,0.00014545,2]
[334916630,1723643809922,-1257.5209126,0.00014545,2]
[334916631,1723643809955,-353.99,0.00014586,2]
[334916632,1723643809988,-2000.0,0.000147,30]
[334916633,1723643810020,-379.98658752,0.0001475,2]
[334916634,1723643810052,-500.0,0.00014794,2]
[334916635,1723643810084,-500.0,0.00014794,2]
[334916636,1723643810117,-500.0,0.00014794,2]
[334916637,1723643810150,-500.0,0.00014794,2]
[334916638,1723643810187,-500.0,0.00014794,2]
[334916639,1723643810222,-500.0,0.00014794,2]
[334916640,1723643810255,-3951.0,0.00014794,2]
[334916641,1723643810297,-500.0,0.00014794,2]
[334916642,1723643810331,-500.0,0.00014794,2]
[334916643,1723643810363,-500.0,0.00014794,2]
[334916644,1723643810397,-400.99282837,0.00014794,2]
[334916645,1723643810430,-500.0,0.00014794,2]
[334916646,1723643810466,-16617.31,0.00014794,2]
[334916647,1723643810500,-500.0,0.00014794,2]
[334916648,1723643810537,-611.09,0.00014794,2]
[334916649,1723643810570,-500.0,0.00014794,2]
[334916650,1723643810610,-500.0,0.00014794,2]
[334916651,1723643810643,-500.0,0.00014794,2]
[334916652,1723643810793,-321.33821621,0.00014794,2]
[334916653,1723643810831,-632.58152614,0.00014794,2]
[334916654,1723643810863,-406.56484559,0.00014794,2]
[334916655,1723643810897,-500.0,0.00014794,2]
[334916656,1723643810930,-500.0,0.00014794,2]
[334916657,1723643810964,-775.39,0.00014794,2]
[334916658,1723643810998,-335.47,0.00014794,2]
[334916659,1723643811039,-500.0,0.00014794,2]
[334916660,1723643811077,-500.0,0.00014794,2]
[334916661,1723643811111,-500.0,0.00014794,2]
[334916662,1723643811145,-500.0,0.00014794,2]
[334916663,1723643811181,-500.0,0.00014794,2]
[334916664,1723643811216,-2063.13,0.00014794,2]
[334916665,1723643811258,-500.0,0.00014794,2]
[334916666,1723643811290,-500.0,0.00014794,2]
[334916667,1723643811325,-500.0,0.00014794,2]
[334916668,1723643811359,-413.23,0.00014794,2]
[334916669,1723643811392,-622.0,0.000149,2]
[334916670,1723643811429,-1257.0,0.000149,2]
[334916671,1723643811462,-1542.0,0.000149,2]
[334916672,1723643811498,-1924.0,0.000149,2]
[334916673,1723643811531,-556.0,0.000149,2]
[334916674,1723643811563,-150.0,0.000149,2]
[334916675,1723643811599,-446.0,0.000149,2]
[334916676,1723643811634,-810.0,0.000149,2]
[334916677,1723643811665,-1137.0,0.000149,2]
[334916678,1723643811701,-551.0,0.000149,2]
[334916679,1723643811734,-1895.0,0.000149,2]
[334916680,1723643811767,-247.0,0.000149,2]
[334916681,1723643811799,-1178.0,0.000149,2]
[334916682,1723643811832,-3292.0,0.000149,2]
[334916683,1723643811870,-150.0,0.000149,2]
[334916684,1723643811902,-5134.0,0.000149,2]
[334916685,1723643811935,-5843.0,0.000149,2]
[334916686,1723643811967,-289.0,0.000149,2]
[334916687,1723643812000,-150.0,0.000149,2]
[334916688,1723643812032,-150.0,0.000149,2]
[334916689,1723643812066,-150.0,0.000149,2]
[334916690,1723643812109,-150.0,0.000149,2]
[334916691,1723643812146,-150.0,0.000149,2]
[334916692,1723643812181,-150.0,0.000149,2]
[334916693,1723643812216,-150.0,0.000149,2]
[334916694,1723643812250,-1204.0,0.000149,2]
[334916695,1723643812285,-21761.0,0.000149,2]
[334916696,1723643812327,-1673.0,0.000149,2]
[334916697,1723643812365,-843.96,0.00014981,2]
[334916698,1723643812398,-500.0,0.00014999,2]
[334916699,1723643812431,-500.0,0.00014999,2]
[334916700,1723643812464,-676.50109187,0.00015,2]
[334916701,1723643812497,-155.0,0.00015,2]
[334916702,1723643812530,-1000.0,0.00015,4]
[334916703,1723643812562,-3524.35826777,0.00015,2]
[334916704,1723643812601,-194.81883266,0.00015,2]
[334916705,1723643812633,-1213.0,0.00015,2]
[334916706,1723643812668,-1931.07092706,0.00015,2]
[334916707,1723643812706,-155.07710398,0.00015,2]
[334916708,1723643812738,-9778.95781531,0.00015,2]
[334916709,1723643812772,-174.18268626,0.00015,2]
[334916710,1723643812806,-151.0,0.00015,2]
[334916711,1723643812838,-5214.0,0.00015,2]
[334916712,1723643812873,-464.806867,0.00015,2]
[334916713,1723643812905,-464.806867,0.00015,2]
[334916714,1723643812939,-275.967869,0.00015,2]
[334916715,1723643812973,-275.967869,0.00015,2]
[334916716,1723643813005,-151.0,0.00015,2]
[334916717,1723643813038,-613.901468,0.00015,2]
[334916718,1723643813077,-151.0,0.00015,2]
[334916719,1723643813111,-613.901468,0.00015,2]
[334916720,1723643813147,-151.0,0.00015,2]
[334916721,1723643813184,-1371.571828,0.00015,2]
[334916722,1723643813218,-197.93624,0.00015,2]
[334916723,1723643813252,-1371.571828,0.00015,2]
[334916724,1723643813285,-197.93624,0.00015,2]
[334916725,1723643813318,-151.0,0.00015,2]
[334916726,1723643813356,-454.831213,0.00015,2]
[334916727,1723643813390,-454.831213,0.00015,2]
[334916728,1723643813424,-1447.428043,0.00015,2]
[334916729,1723643813460,-1447.428043,0.00015,2]
[334916730,1723643813498,-151.0,0.00015,2]
[334916731,1723643813536,-151.0,0.00015,2]
[334916732,1723643813577,-151.0,0.00015,2]
[334916733,1723643813614,-151.0,0.00015,2]
[334916734,1723643813651,-151.0,0.00015,2]
[334916735,1723643813687,-427.674334,0.00015,2]
[334916736,1723643813724,-427.674334,0.00015,2]
[334916737,1723643813759,-151.0,0.00015,2]
[334916738,1723643813797,-151.0,0.00015,2]
[334916739,1723643813832,-2840.261094,0.00015,2]
[334916740,1723643813870,-2840.261094,0.00015,2]
[334916741,1723643813906,-324.47552,0.00015,2]
[334916742,1723643813941,-324.47552,0.00015,2]
[334916743,1723643813976,-373.783469,0.00015,2]
[334916744,1723643814011,-151.0,0.00015,2]
[334916745,1723643814047,-151.0,0.00015,2]
[334916746,1723643814086,-373.783469,0.00015,2]
[334916747,1723643814127,-151.0,0.00015,2]
[334916748,1723643814161,-1014.52,0.00015,2]
[334916749,1723643814192,-2165.0,0.00015,3]
[334916750,1723643814339,-3000.0,0.00015,3]
[334916751,1723643814376,-150.0,0.00015,2]
[334916752,1723643814692,500.0,0.00013698,2]
[334916753,1723643814755,500.0,0.00013972,2]
[334916754,1723643814795,500.0,0.00014246,2]
[334916755,1723643814833,500.0,0.0001452,2]
[334916756,1723643814872,2434.35465,0.00014456,2]
[334916757,1723643814913,1034.50268757,0.00012,2]
[334916758,1723643814964,329.2,0.00014794,2]
[334916759,1723643815010,500.0,0.00013698,2]
[334916760,1723643815054,500.0,0.00013972,2]
[334916761,1723643815098,500.0,0.00014246,2]
[334916762,1723643815137,155.0,0.00014519,2]
[334916763,1723643815177,500.0,0.0001452,2]
[334916764,1723643815216,500.0,0.00014794,2]
[334916765,1723643815963,508.34,0.00013698,2]
[334916766,1723643816222,508.34,0.00013972,2]
[334916767,1723643816865,508.34,0.00014246,2]
[334916768,1723643817867,508.34,0.0001452,2]
[334916769,1723643818133,508.34,0.00014794,2]
[334916770,1723643823031,2524.6724,0.00013598,2]
[334916771,1723643825758,17075.39,0.00013698,2]
[334916772,1723643826026,17075.39,0.00013972,2]
[334916773,1723643826302,17075.39,0.00014246,2]
[334916774,1723643826651,17075.39,0.0001452,2]
[334916775,1723643826935,17075.39,0.00014794,2]
[334916776,1723643835223,500.0,0.00013698,2]
[334916777,1723643835527,500.0,0.00013972,2]
[334916778,1723643835805,500.0,0.00014246,2]
[334916779,1723643836378,500.0,0.00013698,2]
[334916780,1723643836433,500.0,0.0001452,2]
[334916781,1723643836664,500.0,0.00013972,2]
[334916782,1723643836712,500.0,0.00014794,2]
[334916783,1723643836941,500.0,0.00014246,2]
[334916784,1723643837341,500.0,0.0001452,2]
[334916785,1723643837660,500.0,0.00014794,2]
[334916786,1723643838442,500.0,0.00013698,2]
[334916787,1723643839175,500.0,0.00013972,2]
[334916788,1723643839268,250.0,0.00014979,2]
[334916789,1723643839455,500.0,0.00014246,2]
[334916790,1723643839716,801.42,0.00013698,2]
[334916791,1723643839989,801.42,0.00013972,2]
[334916792,1723643840274,801.42,0.00014246,2]
[334916793,1723643840598,801.42,0.0001452,2]
[334916794,1723643840875,801.42,0.00014794,2]
[334916795,1723643840915,170.53174495,0.00014246,2]
[334916796,1723643844438,500.0,0.00013698,2]
[334916797,1723643844726,500.0,0.00014999,2]
[334916798,1723643844766,500.0,0.00013972,2]
[334916799,1723643845006,500.0,0.00014246,2]
[334916800,1723643845556,500.0,0.0001452,2]
[334916801,1723643845616,500.0,0.00014794,2]
[334916802,1723643846257,1202.68041491,0.00013424,2]
[334916803,1723643846815,181.86810677,0.00014246,2]
[334916804,1723643850225,500.0,0.00013698,2]
[334916805,1723643850493,500.0,0.00013972,2]
[334916806,1723643850863,258.38734486,0.00014246,2]
[334916807,1723643851559,500.0,0.00013698,2]
[334916808,1723643851845,500.0,0.00013972,2]
[334916809,1723643853986,500.0,0.00013698,2]
[334916810,1723643854266,500.0,0.00013972,2]
[334916811,1723643854523,500.0,0.00014246,2]
[334916812,1723643854567,500.0,0.00013698,2]
[334916813,1723643854938,500.0,0.00013972,2]
[334916814,1723643855175,500.0,0.00013698,2]
[334916815,1723643855214,500.0,0.00014246,2]
[334916816,1723643855424,500.0,0.00013972,2]
[334916817,1723643855500,500.0,0.0001452,2]
[334916818,1723643855865,500.0,0.00014246,2]
[334916819,1723643855906,500.0,0.00014794,2]
[334916820,1723643855953,500.0,0.0001452,2]
[334916821,1723643856296,500.0,0.00014794,2]
[334916822,1723643857357,500.0,0.00013698,2]
[334916823,1723643857741,500.0,0.00013972,2]
[334916824,1723643858018,500.0,0.00014246,2]
[334916825,1723643858692,500.0,0.00013698,2]
[334916826,1723643858740,500.0,0.00013698,2]
[334916827,1723643858988,500.0,0.00013972,2]
[334916828,1723643859098,500.0,0.00013972,2]
[334916829,1723643859262,500.0,0.00014246,2]
[334916830,1723643859356,500.0,0.00014246,2]
[334916831,1723643859709,500.0,0.0001452,2]
[334916832,1723643859759,637.86130448,0.00013698,2]
[334916833,1723643859832,500.0,0.00014794,2]
[334916834,1723643860542,500.0,0.00013698,2]
[334916835,1723643860731,226.0,0.000116,2]
[334916836,1723643861175,500.0,0.00013972,2]
[334916837,1723643861458,500.0,0.00014246,2]
[334916838,1723643866821,500.0,0.00013698,2]
[334916839,1723643867096,500.0,0.00013972,2]
[334916840,1723643867380,500.0,0.00014246,2]
[334916841,1723643868308,500.0,0.00013698,2]
[334916842,1723643868579,500.0,0.00013972,2]
[334916843,1723643872539,500.0,0.00013698,2]
[334916844,1723643872834,500.0,0.00013972,2]
[334916845,1723643873092,500.0,0.00014246,2]
[334916846,1723643873367,500.0,0.0001452,2]
[334916847,1723643873635,500.0,0.00014794,2]
[334916848,1723643875136,500.0,0.00013698,2]
[334916849,1723643875418,500.0,0.00013972,2]
[334916850,1723643875681,500.0,0.00014246,2]
[334916851,1723643875790,500.0,0.00014999,2]
[334916852,1723643879682,500.0,0.00013698,2]
[334916853,1723643879963,500.0,0.00013972,2]
[334916854,1723643880253,500.0,0.00014246,2]
[334916855,1723643880697,500.0,0.00013698,2]
[334916856,1723643880743,500.0,0.00013698,2]
[334916857,1723643881015,500.0,0.00013972,2]
[334916858,1723643881306,500.0,0.00013972,2]
[334916859,1723643881347,500.0,0.00014246,2]
[334916860,1723643881579,500.0,0.00014246,2]
[334916861,1723643881871,500.0,0.0001452,2]
[334916862,1723643882165,500.0,0.00014794,2]
[334916863,1723643885969,500.0,0.00013698,2]
[334916864,1723643886242,500.0,0.00013972,2]
[334916865,1723643886510,500.0,0.00014246,2]
[334916866,1723643886852,500.0,0.0001452,2]
[334916867,1723643887148,500.0,0.00014794,2]
[334916868,1723643887690,500.0,0.00013698,2]
[334916869,1723643888275,500.0,0.00013972,2]
[334916870,1723643888549,500.0,0.00014246,2]
[334916871,1723643888831,500.0,0.0001452,2]
[334916872,1723643889104,500.0,0.00014794,2]